[Event "85th Tata Steel Challengers 2023"]
[Site "Wijk aan Zee"]
[Date "2023.01.14"]
[Round "1.5"]
[White "Warmerdam, Max"]
[Black "Pechac, Jergus"]
[Result "1-0"]
[ECO "C60"]
[WhiteElo "2616"]
[BlackElo "2637"]
[Annotator "TA"]
[PlyCount "61"]
[EventDate "2023.01.10"]
[EventType "tourn"]
[EventCountry "NED"]
[SourceTitle "playchess.com"]
[Source "ChessBase"]
[SourceQuality "1"]
[TimeControl "40/6000+30:30/3000+30:900+30"]

{[%evp 9,60,0,1,14,15,2,21,8,4,-37,-27,-32,0,0,0,-16,10,0,52,41,56,39,52,0,0,0,0,0,0,0,0,0,1084,1083,1945,1960,1939,0,0,0,1931,1870,2031,547,2012,2035,1839,1807,29984,29985,29991,29990,29999]} 1. e4 {[%emt 0:00:03]} e5 {[%emt 0:00:44]} 2. Nf3 {[%emt 0:00:07]} Nc6 {[%emt 0:00:12]} 3. Bb5 {[%emt 0:00:10]} Nge7 {[%emt 0:01:08]} 4. Nc3 {[%emt 0:00:41]} Ng6 {[%emt 0:00:12]} 5. Bc4 {[%emt 0:00:23]} Bc5 {[%emt 0:00:27] [#]} 6. h4 $146 {[%emt 0:00:32] C60: Ruy Lopez: Unusual Black 3rd moves and 3...g6.} ({Predecessor:} 6. O-O d6 7. Nd5 Be6 8. c3 a6 9. Ng5 Qd7 10. h3 Ba7 11. Bb3 Na5 12. Bc2 c6 {1-0 Rivollier,F (1654)-Guy,D (1686) FRA-EU email 2017 [49]}) 6... h6 {[%emt 0:00:18]} 7. Nd5 {[%emt 0:00:18]} Nge7 {[%emt 0:06:30]} 8. c3 {[%emt 0:02:13] The position is equal.} O-O {[%emt 0:00:53]} 9. Ng5 {[%emt 0:21:57][%cal Od5f6]} Nxd5 {[%emt 0:01:01]} (9... hxg5 $2 10. hxg5 $18) 10. exd5 {[%emt 0:01:59]} b5 {[%emt 0:00:21]} (10... hxg5 11. hxg5 g6 12. Qf3 $16 (12. dxc6 Qxg5 13. Qf3 Qf5 $14)) (10... Ne7 $5) 11. Bb3 {[%emt 0:12:59]} Na5 {[%emt 0:00:10]} (11... hxg5 12. hxg5 g6 13. Qf3 $16 (13. dxc6 Qxg5 14. Qf3 Qf5 $14)) 12. Bc2 {[%emt 0:00:09][%cal Ob2b4] aiming for b4!} Nb7 {[%emt 0:00:44]} (12... hxg5 13. Bh7+ Kh8 14. Qh5 Bxf2+ 15. Kf1 Re8 16. hxg5) (12... Bb6 $5) 13. Qh5 {[%emt 0:08:38] Threatens to win with Nh7.} d6 {[%emt 0:00:33] [#]} (13... Qe8 $11) 14. d4 $1 {[%emt 0:04:50]} exd4 {[%emt 0:00:30] [#]} 15. O-O $1 {[%emt 0:00:30] And now Nh7 would win.} f5 {[%emt 0:19:10]} (15... hxg5 $2 16. Qh7#) (15... Qe8 16. cxd4) 16. Nf3 {[%emt 0:13:38]} (16. Ne6 $14 Bxe6 17. dxe6) 16... dxc3 {[%emt 0:17:45] ...Qf6 is the strong threat.} 17. Bxh6 $1 {[%emt 0:00:54]} cxb2 {[%emt 0:31:30]} 18. Rae1 {[%emt 0:00:34][%cal Oh6g7,Ba1e1,Be1e7,Be7g7][%mdl 32]} Qf6 {[%emt 0:02:01]} (18... gxh6 19. Qg6+ Kh8 20. Qxh6+ Kg8 21. Ng5 Qd7 22. Re6 Qg7 23. Rg6) 19. Bd2 {[%emt 0:03:56][%cal Od2c3] Black must now prevent Bc3!} Bd7 {[%emt 0:02:52]} 20. Bc3 $1 $40 {[%emt 0:10:19][%mdl 192] Deflection. White attacks. Some like it hot} Qh6 {[%emt 0:02:43][%mdl 8192] [#]} (20... Qxc3 21. Ng5 Bxf2+ 22. Kh1) (20... Bxf2+ $11 21. Rxf2 Qxc3) 21. Re7 $1 $18 {[%emt 0:00:25][%mdl 64] Double Attack} Qxh5 {[%emt 0:06:34]} (21... Rf6 22. Qxh6) 22. Rxg7+ {[%emt 0:00:09]} (22. Rxd7 $2 {loses.} Rf7 23. Rxf7 Qxf7 $19) 22... Kh8 {[%emt 0:00:05]} 23. Rf7+ {[%emt 0:00:13]} Kg8 $1 {[%emt 0:00:13]} 24. Rg7+ {[%emt 0:00:04]} (24. Rxd7 $2 {is the wrong capture.} Rf7 25. Rxf7 Qxf7 $19) 24... Kh8 {[%emt 0:00:05][%cal Oh5h6] Hoping for ...Qh6!} 25. Rxd7+ {[%emt 0:00:54]} Rf6 {[%emt 0:00:13]} 26. Bxf6+ {[%emt 0:00:05] A strong pair of Bishops.} Kg8 {[%emt 0:00:05]} 27. Rg7+ {[%emt 0:01:00]} Kf8 {[%emt 0:00:09]} 28. Ng5 {[%emt 0:00:08] Threatening mate with Ne6+.} Bxf2+ {[%emt 0:02:09]} 29. Rxf2 {[%emt 0:00:48] White mates.} Nc5 {[%emt 0:00:09]} 30. Bxb2 {[%emt 0:00:53]} Qe8 {[%emt 0:00:26]} 31. Nh7# {[%emt 0:00:05] Magnificent play by Warmerdam!   Weighted Error Value: White=0.21 (precise) /Black=0.41} 1-0

[Event "85th Tata Steel Challengers 2023"]
[Site "Wijk aan Zee"]
[Date "2023.01.14"]
[Round "1.6"]
[White "Mishra, Abhimanyu"]
[Black "Roebers, Eline"]
[Result "1-0"]
[ECO "E14"]
[WhiteElo "2559"]
[BlackElo "2361"]
[Annotator "TA"]
[PlyCount "65"]
[EventDate "2023.01.10"]
[EventType "tourn"]
[EventCountry "NED"]
[SourceTitle "playchess.com"]
[Source "ChessBase"]
[SourceQuality "1"]
[TimeControl "40/6000+30:30/3000+30:900+30"]

{[%evp 17,65,27,34,35,35,34,46,25,37,33,50,49,66,50,57,75,90,73,76,70,66,56,82,79,108,111,114,108,92,95,112,130,155,159,142,126,125,64,176,175,175,175,231,231,262,248,256,261,507,506]} 1. d4 {[%emt 0:00:02]} Nf6 {[%emt 0:00:29]} 2. c4 {[%emt 0:00:12]} e6 {[%emt 0:00:17]} 3. Nf3 {[%emt 0:00:30]} Bb4+ {[%emt 0:00:40]} 4. Nbd2 {[%emt 0:01:23]} b6 {[%emt 0:01:21]} 5. a3 {[%emt 0:01:50]} Bxd2+ {[%emt 0:00:52]} 6. Qxd2 {[%emt 0:00:53]} Bb7 {[%emt 0:01:29]} 7. e3 {[%emt 0:01:45]} O-O {[%emt 0:02:03]} 8. Be2 {[%emt 0:00:48]} d5 {[%emt 0:02:51] is cutting edge theory.} 9. O-O {[%emt 0:04:55]} c5 {[%emt 0:10:48]} 10. dxc5 {[%emt 0:10:58] E14: Queen's Indian: Classical Variation (4 e3).} bxc5 {[%emt 0:02:38] [#]} 11. b3 $146 {[%emt 0:02:47]} ({Predecessor:} 11. cxd5 exd5 12. b4 Ne4 13. Qc2 c4 14. Bb2 Nd7 15. Bd4 Qe7 16. Rfd1 Nb6 17. a4 Qxb4 {1-0 Chatalbashev,B (2507)-Zapata,K (2184) Castelldefels op 3rd 2006 (3)}) 11... Nbd7 {[%emt 0:10:01]} 12. Rd1 {[%emt 0:12:23] White is slightly better.} Rb8 {[%emt 0:07:19][%cal Ba8b8,Bb8b6,Bb6g6][%mdl 32]} 13. Bb2 {[%emt 0:01:40]} Ba8 {[%emt 0:06:01]} 14. Qc3 {[%emt 0:08:48]} Qe7 {[%emt 0:04:29]} 15. Rac1 {[%emt 0:03:18]} Rfd8 {[%emt 0:06:59]} 16. Nd2 {[%emt 0:04:18]} Rb6 {[%emt 0:10:23]} 17. h3 {[%emt 0:09:01]} h6 {[%emt 0:02:51]} 18. cxd5 {[%emt 0:09:22]} exd5 {[%emt 0:00:44][%cal Od5d4]} 19. Bf3 {[%emt 0:01:24]} Ne8 {[%emt 0:07:45]} 20. Bg4 {[%emt 0:07:50]} Rg6 {[%emt 0:04:11]} 21. Nf3 {[%emt 0:03:02]} Nd6 {[%emt 0:04:05] [#]} 22. Ne5 $1 {[%emt 0:04:39]} Nxe5 {[%emt 0:02:24]} 23. Qxe5 {[%emt 0:00:05]} Qb7 {[%emt 0:01:35]} 24. Rxc5 {[%emt 0:04:47] White is more active. Black is weak on the dark squares} Qxb3 {[%emt 0:13:12][%cal Og6g4] [#] ...Rxg4! would be deadly.} 25. Rdc1 $1 $36 {[%emt 0:04:42][%mdl 2048] White is really pushing.} Re8 {[%emt 0:04:20]} 26. Qc3 {[%emt 0:02:49]} Qb7 {[%emt 0:00:11][%cal Od5d4] Hoping for ...d4!} 27. Qb4 {[%emt 0:01:22]} ({White should play} 27. Qd4 $16) 27... Qxb4 {[%emt 0:03:06]} (27... d4 $1 $14 28. Qxb7 (28. Qxd4 $2 Qxg2#) 28... Bxb7) 28. axb4 $18 {[%emt 0:00:02]} Nc4 {[%emt 0:00:06]} 29. Bd4 {[%emt 0:01:07] Black must now prevent Rc7. This pair of bishops is nice.} a6 {[%emt 0:01:07]} (29... Rb6 {might work better.} 30. b5 Reb8) 30. Ra1 {[%emt 0:02:32]} Rb8 {[%emt 0:00:34]} 31. Rc8+ {[%emt 0:00:57]} Rxc8 {[%emt 0:00:14]} 32. Bxc8 {[%emt 0:00:06]} Bc6 $2 {[%emt 0:00:51]} (32... Rd6 33. Bxa6 Rd8) 33. Rxa6 {[%emt 0:01:12] Weighted Error Value: White=0.07 (flawless) /Black=0.28 (precise)} 1-0

[Event "85th Tata Steel Challengers 2023"]
[Site "Wijk aan Zee"]
[Date "2023.01.14"]
[Round "1.7"]
[White "Beerdsen, Thomas"]
[Black "Vaishali, Rameshbabu"]
[Result "1/2-1/2"]
[ECO "B30"]
[WhiteElo "2515"]
[BlackElo "2425"]
[Annotator "TA"]
[PlyCount "50"]
[EventDate "2023.01.10"]
[EventType "tourn"]
[EventCountry "NED"]
[SourceTitle "playchess.com"]
[Source "ChessBase"]
[SourceQuality "1"]
[TimeControl "40/6000+30:30/3000+30:900+30"]

{[%evp 16,50,14,24,22,6,14,0,0,-4,0,0,0,-13,45,43,77,72,103,116,152,128,361,371,368,144,133,127,153,63,67,59,60,0,0,0,51]} 1. e4 {[%emt 0:00:04]} c5 {[%emt 0:00:29]} 2. Nf3 {[%emt 0:00:07]} Nc6 {[%emt 0:00:07]} 3. Bb5 {[%emt 0:00:07]} e6 {[%emt 0:00:07]} 4. O-O {[%emt 0:00:30]} Nge7 {[%emt 0:00:15]} 5. Re1 {[%emt 0:00:21]} a6 {[%emt 0:00:31]} 6. Bf1 {[%emt 0:00:17]} d5 {[%emt 0:00:18]} 7. exd5 {[%emt 0:07:34]} Nxd5 {[%emt 0:00:05]} 8. d4 {[%emt 0:01:52]} Nf6 {[%emt 0:00:20]} 9. Be3 {[%emt 0:07:37]} cxd4 {[%emt 0:00:33] B30: Sicilian: 2...Nc6 3 Bb5, lines without ...g6.} 10. Nxd4 {[%emt 0:03:35]} Bd7 {[%emt 0:00:08] 10...Bd7 scores better than 10...Nxd4.} 11. Nc3 {[%emt 0:08:34]} Be7 {[%emt 0:10:54]} 12. Qf3 {[%emt 0:05:33] [#]} Nxd4 $146 {[%emt 0:05:09]} ({Predecessor:} 12... O-O 13. Rad1 Qc7 14. Qg3 Qxg3 15. hxg3 Rac8 16. a3 Ne5 17. Bf4 Ng6 18. Bg5 h6 19. Bxf6 Bxf6 {0-1 Boruchovsky,A (2551)-Grischuk,A (2745) Titled Tuesday intern op 16th Aug Late blitz 2022 (3)}) 13. Bxd4 {[%emt 0:00:06]} Bc6 {[%emt 0:00:11]} 14. Qf4 {[%emt 0:04:06] [#]} g5 {[%emt 0:30:14]} 15. Qe5 $14 {[%emt 0:10:18]} (15. Qxg5 $2 Qxd4 16. Qe3 Qxe3 17. Rxe3 Bc5 $19) 15... Rg8 {[%emt 0:00:21]} 16. Rad1 $1 {[%emt 0:02:58]} Nd7 {[%emt 0:03:21]} 17. Qg3 {[%emt 0:17:28]} h5 {[%emt 0:09:02]} 18. Qh3 {[%emt 0:14:17][%cal Oe1e6] Strongly threatening Rxe6! White has more active pieces. The black rooks are badly placed.} h4 $2 {[%emt 0:27:21] [#]} (18... Bf6 $16 {might work better.}) 19. Rxe6 $1 $18 {[%emt 0:03:21][%mdl 512]} g4 {[%emt 0:02:57] [#]} (19... Qc7 20. Ree1) 20. Qxh4 {[%emt 0:17:07]} (20. Rxe7+ Qxe7 21. Qe3 Qxe3 22. fxe3 Rd8 $15) (20. Qe3 $1 $18 fxe6 21. Qxe6) 20... fxe6 $16 {[%emt 0:00:09]} 21. Qh5+ {[%emt 0:00:04]} Kf8 {[%emt 0:00:04] [#] ...Rg5 would be deadly.} 22. Qh6+ {[%emt 0:00:05]} (22. Bc4 $1 $16 {[%cal Rc4e6]} Bf6 23. Bc5+ (23. Bxe6 Qe7 $11) 23... Nxc5 24. Rxd8+ Rxd8 25. Qxc5+ Kf7 26. Qe3 (26. Qf5 Rd6 $16)) 22... Kf7 $14 {[%emt 0:00:14]} 23. Qh7+ $1 {[%emt 0:00:17][%mdl 1024] White has compensation.} Kf8 {[%emt 0:00:06] aiming for ...Bg5.} 24. Qh6+ {[%emt 0:00:06]} (24. Bc4 $14 Bf6 25. Bxe6) 24... Kf7 $1 $11 {[%emt 0:00:03]} 25. Qh7+ {[%emt 0:04:23]} (25. Bc4 $11 Bf6 26. Qh5+ Rg6 27. Qh7+ (27. Bxe6+ Kg7 $11) 27... Rg7 28. Qh5+ (28. Qf5 $2 Nf8 $17) 28... Rg6 29. Qh7+ (29. Bxe6+ Kg7 $11) 29... Rg7 30. Qh5+ (30. Qf5 Nf8 $17) 30... Rg6) 25... Kf8 {[%emt 0:00:02] Weighted Error Value: White=0.22 (precise) /Black=0.27 (precise)} 1/2-1/2

[Event "85th Tata Steel Challengers 2023"]
[Site "Wijk aan Zee"]
[Date "2023.01.15"]
[Round "2.1"]
[White "Supi, Luis Paulo"]
[Black "Warmerdam, Max"]
[Result "1/2-1/2"]
[ECO "C50"]
[WhiteElo "2608"]
[BlackElo "2616"]
[Annotator "TA"]
[PlyCount "50"]
[EventDate "2023.01.10"]
[EventType "tourn"]
[EventCountry "NED"]
[SourceTitle "playchess.com"]
[Source "ChessBase"]
[SourceQuality "1"]
[TimeControl "40/6000+30:30/3000+30:900+30"]

{[%evp 11,50,15,8,-2,0,0,21,21,21,22,30,21,32,23,26,17,31,25,26,25,37,35,32,28,26,25,30,-16,-16,-20,0,-21,-22,-22,0,0,0,0,0,0,0]} 1. e4 {[%emt 0:00:03]} e5 {[%emt 0:00:06]} 2. Nf3 {[%emt 0:00:24]} Nc6 {[%emt 0:00:06]} 3. Bc4 {[%emt 0:00:03]} Nf6 {[%emt 0:00:06]} 4. d3 {[%emt 0:00:04]} Bc5 {[%emt 0:00:05]} 5. Nc3 {[%emt 0:03:26]} h6 {[%emt 0:00:55]} 6. O-O {[%emt 0:02:47]} O-O {[%emt 0:03:53]} 7. Bd5 {[%emt 0:03:02] 7.h3 gains popularity. C50: Hungarian Defence and Giuoco Pianissimo.} Re8 {[%emt 0:18:38]} 8. Bxc6 {[%emt 0:01:52]} bxc6 {[%emt 0:04:52] [#]} 9. Nxe5 $146 {[%emt 0:10:37][%mdl 64] Remove Defender, Decoy} ({Predecessor:} 9. b3 d5 10. b4 Bxb4 11. Rb1 Bxc3 12. Bd2 Bxd2 13. Qxd2 Nd7 14. d4 Qf6 15. Ng5 hxg5 16. exd5 cxd5 17. dxe5 Rxe5 {0-1 Zahirovic,R-Basrak,T (1651) Osijek-Baranja op U16 Girls 15th 2014 (3.6)}) 9... Rxe5 {[%emt 0:01:19]} 10. d4 {[%emt 0:00:06]} Re6 {[%emt 0:02:54] Strongly threatening ...Bb6.} 11. dxc5 {[%emt 0:00:32]} Nxe4 {[%emt 0:00:08]} 12. Nxe4 {[%emt 0:03:26]} Rxe4 {[%emt 0:00:11]} 13. Re1 {[%emt 0:01:40]} Rxe1+ {[%emt 0:08:08]} 14. Qxe1 {[%emt 0:00:37]} d5 {[%emt 0:03:15] Black is weak on the dark squares} 15. Qe5 {[%emt 0:07:45]} Be6 {[%emt 0:05:21]} 16. Bf4 {[%emt 0:13:23]} Qe7 {[%emt 0:00:53]} 17. Qc3 {[%emt 0:02:31]} Bf5 {[%emt 0:05:51]} 18. Re1 {[%emt 0:03:10]} Qd7 {[%emt 0:01:11]} 19. Be5 {[%emt 0:19:37]} (19. f3 $142) 19... Re8 $11 {[%emt 0:03:49][%cal Od5d4] The position is equal.} 20. Kf1 {[%emt 0:13:41]} Qc8 {[%emt 0:05:17]} 21. a3 {[%emt 0:02:57]} f6 {[%emt 0:19:46]} 22. Bd4 {[%emt 0:00:09]} Qa6+ {[%emt 0:00:29]} 23. Kg1 {[%emt 0:00:10]} Re2 {[%emt 0:01:07]} 24. Rc1 {[%emt 0:04:12]} Kh7 {[%emt 0:04:50]} 25. h3 {[%emt 0:01:14]} Qc4 {[%emt 0:02:52] Weighted Error Value: White=0.06 (flawless) /Black=0.05 (flawless)} 1/2-1/2

[Event "85th Tata Steel Challengers 2023"]
[Site "Wijk aan Zee"]
[Date "2023.01.15"]
[Round "2.2"]
[White "Yilmaz, Mustafa"]
[Black "Mishra, Abhimanyu"]
[Result "1/2-1/2"]
[ECO "D44"]
[WhiteElo "2609"]
[BlackElo "2559"]
[Annotator "TA"]
[PlyCount "60"]
[EventDate "2023.01.10"]
[EventType "tourn"]
[EventCountry "NED"]
[SourceTitle "playchess.com"]
[Source "ChessBase"]
[SourceQuality "1"]
[TimeControl "40/6000+30:30/3000+30:900+30"]

{[%evp 23,60,54,51,29,46,45,50,36,53,45,44,35,31,30,52,0,0,0,0,0,0,0,0,0,0,0,670,0,0,0,0,0,0,0,0,0,0,0,0]} 1. Nf3 {[%emt 0:00:04]} d5 {[%emt 0:00:05]} 2. d4 {[%emt 0:00:05]} Nf6 {[%emt 0:00:10]} 3. c4 {[%emt 0:00:07]} c6 {[%emt 0:00:20]} 4. Nc3 {[%emt 0:00:05]} e6 {[%emt 0:00:12]} 5. Bg5 {[%emt 0:00:20]} dxc4 {[%emt 0:00:33]} 6. e4 {[%emt 0:01:43][%cal Be2e4,Be4e5][%mdl 32]} b5 {[%emt 0:00:30]} 7. e5 {[%emt 0:00:06]} h6 {[%emt 0:00:08]} 8. Bh4 {[%emt 0:00:06]} g5 {[%emt 0:00:22]} 9. Nxg5 {[%emt 0:00:12]} hxg5 {[%emt 0:00:17]} 10. Bxg5 {[%emt 0:00:05]} Be7 {[%emt 0:00:25]} 11. exf6 {[%emt 0:00:13]} Bxf6 {[%emt 0:00:17]} 12. Bxf6 {[%emt 0:00:09]} Qxf6 {[%emt 0:00:09]} 13. Be2 {[%emt 0:00:05][%cal Oc3b5] D44: Semi-Slav: Botvinnik System.} (13. g3 $5 {[%cal Rc3b5]}) 13... Na6 {[%emt 0:05:15]} 14. a4 {[%emt 0:00:46][%cal Ba2a4,Ba4b5,Bb5b6,Bb6a7][%mdl 32]} Bb7 {[%emt 0:05:29]} 15. axb5 {[%emt 0:01:52][%mdl 64] [#] Discovered Attack. White is slightly better.} Nb4 $146 {[%emt 0:01:15][%cal Oc6c5]} (15... cxb5 16. Nxb5 (16. Bf3 Bxf3 17. Qxf3 Qxf3 $17) 16... Qe7 17. Bf3 $16 (17. Bxc4 Nb4 $16)) ({Predecessor:} 15... cxb5 16. Nxb5 Kf8 17. Nd6 Bxg2 18. Rg1 Rxh2 19. Rxa6 Rd8 20. Qd2 Bb7 21. Ne4 Qe7 22. Rxa7 Rh4 23. Qg5 Qxg5 24. Nxg5 Rb8 25. Nxf7 Rxd4 26. Ne5 {1-0 Maghsoodloo,P (2721)-Durarbayli,V (2628) Shusha Rapid 2022 (2)}) 16. b6 {[%emt 0:00:30]} (16. Bxc4 Qf5 17. O-O c5 $11) 16... c5 {[%emt 0:01:49][%mdl 64] Discovered Attack} 17. Rxa7 {[%emt 0:12:19]} ({But not} 17. Bxc4 Bxg2 18. Rg1 axb6 19. Rxa8+ (19. Rxg2 $2 {is the wrong capture.} Rxa1 {[%mdl 64] Deflection} 20. Qxa1 Nc2+ 21. Kf1 Nxa1 $19) (19. Bb5+ $2 Ke7 $19) 19... Bxa8 20. dxc5 Qe5+ 21. Kf1 bxc5 22. Bb5+ Ke7 23. Qd7+ Kf6 $15) (17. bxa7 Qf5 18. Nb5 (18. Bxc4 $2 Nc2+ 19. Kd2 Nxa1 $19) (18. Qa4+ Bc6 $17) 18... Ke7 $17) 17... Rxa7 {[%emt 0:01:02]} 18. bxa7 {[%emt 0:00:05]} Ke7 $1 {[%emt 0:02:07]} 19. dxc5 {[%emt 0:02:03]} (19. Qd2 $14) 19... Rd8 $11 {[%emt 0:00:17]} 20. Qa4 {[%emt 0:00:22]} Qg5 $1 {[%emt 0:01:43] Strongly threatening ...Qc1+.} 21. Qxb4 {[%emt 0:00:56]} Qd2+ $1 {[%emt 0:00:13]} 22. Kf1 {[%emt 0:00:05] Intending c6+ and mate.} Qc1+ {[%emt 0:00:04]} 23. Bd1 {[%emt 0:00:09]} Rxd1+ {[%emt 0:00:15]} 24. Nxd1 {[%emt 0:00:03]} Qxd1+ {[%emt 0:00:07]} 25. Qe1 {[%emt 0:00:03]} Bxg2+ $1 {[%emt 0:00:08][%mdl 64] [#] Decoy. The position is equal.} 26. Kxg2 {[%emt 0:00:04]} Qg4+ {[%emt 0:00:07]} 27. Kf1 {[%emt 0:00:04]} Qh3+ {[%emt 0:00:06]} 28. Kg1 {[%emt 0:00:04]} Qg4+ {[%emt 0:00:05]} 29. Kf1 {[%emt 0:00:04]} Qh3+ {[%emt 0:00:04]} 30. Kg1 {[%emt 0:00:05]} Qg4+ {[%emt 0:00:05] Weighted Error Value: White=0.11 (very precise) /Black=0.01 (flawless)} 1/2-1/2

[Event "85th Tata Steel Challengers 2023"]
[Site "Wijk aan Zee"]
[Date "2023.01.15"]
[Round "2.3"]
[White "Ivic, Velimir"]
[Black "Sindarov, Javokhir"]
[Result "1/2-1/2"]
[ECO "D87"]
[WhiteElo "2585"]
[BlackElo "2654"]
[Annotator "TA"]
[PlyCount "115"]
[EventDate "2023.01.10"]
[EventType "tourn"]
[EventCountry "NED"]
[SourceTitle "playchess.com"]
[Source "ChessBase"]
[SourceQuality "1"]
[TimeControl "40/6000+30:30/3000+30:900+30"]

{[%evp 19,115,8,27,7,11,0,0,0,0,0,0,0,38,2,9,0,0,0,0,0,52,52,189,167,173,172,195,162,178,126,242,268,224,156,139,142,156,164,163,165,160,125,148,144,126,64,77,65,71,2,5,11,50,51,119,0,0,0,0,0,0,0,0,0,0,0,0,0,0,0,0,0,0,0,0,0,0,0,0,0,0,0,0,0,0,0,0,0,0,0,0,0,0,0,0,0,0,0]} 1. d4 {[%emt 0:00:12]} Nf6 {[%emt 0:00:32]} 2. c4 {[%emt 0:00:08]} g6 {[%emt 0:00:06]} 3. Nc3 {[%emt 0:00:20]} d5 {[%emt 0:00:06]} 4. cxd5 {[%emt 0:00:22]} Nxd5 {[%emt 0:00:05]} 5. e4 {[%emt 0:00:13]} Nxc3 {[%emt 0:00:04]} 6. bxc3 {[%emt 0:00:05]} Bg7 {[%emt 0:00:08]} 7. Bc4 {[%emt 0:00:26]} c5 {[%emt 0:00:39]} 8. Ne2 {[%emt 0:00:13]} Nc6 {[%emt 0:00:27]} 9. Be3 {[%emt 0:00:11]} O-O {[%emt 0:00:13]} 10. O-O {[%emt 0:00:41]} b6 {[%emt 0:00:28]} 11. Rc1 {[%emt 0:01:30] D87: Exchange Grünfeld: Classical Line: Variations without ...cxd4.} Bb7 {[%emt 0:02:33]} 12. Bb5 $1 {[%emt 0:00:41][%mdl 4] is currently scoring better than 12.Qd2.} Rc8 {[%emt 0:06:08]} 13. Qd2 {[%emt 0:01:18]} e6 {[%emt 0:07:12]} 14. Rfd1 {[%emt 0:00:36]} cxd4 {[%emt 0:16:05]} 15. cxd4 {[%emt 0:00:07]} Qd6 {[%emt 0:03:02]} 16. Bf4 {[%emt 0:37:30] [#]} Qa3 $146 {[%emt 0:16:57]} ({Predecessor:} 16... e5 17. d5 Na5 18. Be3 Rxc1 19. Rxc1 Rc8 20. h3 Bf8 21. Rxc8 Bxc8 22. Qc3 Bd7 23. Bxd7 Qxd7 24. Qxe5 {½-½ Harikrishna,P (2731)-Ding,L (2801) Tata Steel India rapid 2019 (2)}) 17. d5 {[%emt 0:01:41]} exd5 {[%emt 0:00:21]} 18. exd5 {[%emt 0:00:09][%cal Be4d5,Bd5c6,Bc6c7][%mdl 32]} Ne5 {[%emt 0:00:04]} 19. Bc6 {[%emt 0:01:37]} Bxc6 {[%emt 0:29:10]} (19... Nxc6 20. dxc6 Rxc6 21. Rxc6 (21. Bd6 Rxd6 22. Qxd6 Qxa2 $11) 21... Bxc6 22. Bd6 $14) (19... Ba6 $11) 20. dxc6 $14 {[%emt 0:00:44]} (20. Bxe5 Ba4 21. Bxg7 Kxg7 $11) 20... Rfe8 {[%emt 0:00:04]} (20... Nxc6 21. Bd6 Qb2 22. Qxb2 (22. Bxf8 Qxd2 23. Rxd2 Bxf8 $16) 22... Bxb2 23. Rc2 $16) (20... Rxc6 21. Rxc6 Nxc6 22. Bd6 $16) (20... Qe7 $1 $14) 21. c7 $18 {[%emt 0:19:54]} Qe7 {[%emt 0:00:14]} 22. Qc2 {[%emt 0:02:36]} Bf8 {[%emt 0:12:53]} 23. Qa4 {[%emt 0:13:19]} Qh4 {[%emt 0:10:19]} 24. Rd4 {[%emt 0:12:54]} (24. Qxa7 Bc5 25. Bg3 Qe7 $11) (24. Qa6 $18 {Bxe5 would be deadly.} Qf6 25. Bg3 (25. Qxa7 Bc5 $14)) 24... Qg4 {[%emt 0:04:03]} (24... Nf3+ $2 25. gxf3 Rxe2 26. Be3 $18 (26. Qxa7 $2 {gets mated.} Qxf2+ 27. Kh1 Qg2#)) (24... Ng4 $16 {keeps fighting.} 25. Bg3 {[%mdl 64] Discovered Attack} Qe7) 25. Ng3 {[%emt 0:03:48]} Qe6 {[%emt 0:00:05]} 26. Bxe5 {[%emt 0:05:49]} ({Weaker is} 26. Qxa7 Nc6 27. Qxb6 Nxd4 28. Qxd4 Bg7 $11) 26... Qxe5 {[%emt 0:00:07]} 27. Re4 $1 {[%emt 0:00:19][%mdl 64] Skewer} Qb2 {[%emt 0:00:55]} 28. Qc6 {[%emt 0:00:40] Black is weak on the light squares} Re7 {[%emt 0:00:55]} 29. Rxe7 {[%emt 0:02:54]} Bxe7 {[%emt 0:00:03]} 30. Ne4 {[%emt 0:01:10] Prevents Bc5} Kg7 {[%emt 0:00:52]} 31. g3 {[%emt 0:01:24] Black must now prevent Rd1.} Qe5 {[%emt 0:00:38]} (31... Qxa2 $2 32. Rd1 Qe6 33. Nd6 $18) (31... f5 $2 32. Rc4 Qe5 33. Qd7 $18) 32. Qd7 {[%emt 0:01:39]} (32. Qb7 $16 Qe6 33. Kg2) 32... Qe6 $14 {[%emt 0:00:13] [#]} 33. Qd4+ {[%emt 0:00:17]} Kg8 {[%emt 0:00:13] [#]} 34. a4 {[%emt 0:01:02] White has more active pieces.} (34. h4 $1 $16) 34... f5 $132 {[%emt 0:00:52][%mdl 2048] Black is not keeping still} 35. Nd2 {[%emt 0:00:02] With the idea Nf3.} Qd6 {[%emt 0:00:28]} 36. Qc4+ {[%emt 0:00:37]} Kg7 {[%emt 0:00:08]} ({Black should play} 36... Kf8 $1 $14 37. Rc2 Bf6) 37. Nb3 {[%emt 0:01:19]} ({Better is} 37. Nf3 $16) 37... Bf6 {[%emt 0:00:11] The position is equal.} 38. a5 {[%emt 0:00:30]} b5 {[%emt 0:01:23][%mdl 64] Deflection} 39. Qxb5 {[%emt 0:00:27]} Rxc7 {[%emt 0:00:05]} 40. Rxc7+ {[%emt 0:00:17]} Qxc7 {[%emt 0:00:03][%mdl 4096] Endgame KQB-KQN} 41. Nc5 {[%emt 0:02:11]} Kh6 {[%emt 0:00:13]} 42. Ne6 {[%emt 0:06:32]} Qc2 {[%emt 0:11:02]} 43. Qd5 {[%emt 0:05:44]} a6 {[%emt 0:15:21]} 44. h4 {[%emt 0:22:18] Threatens to win with Qd6.} Qb1+ {[%emt 0:00:05]} 45. Kg2 {[%emt 0:00:20] Hoping for Qd2+.} Qe4+ {[%emt 0:00:03]} 46. Qxe4 {[%emt 0:00:04]} fxe4 {[%emt 0:00:02] KB-KN} 47. Nc5 {[%emt 0:07:04]} Bc3 {[%emt 0:00:13]} 48. Nxa6 {[%emt 0:00:06]} Bxa5 {[%emt 0:00:03]} 49. Nc5 {[%emt 0:00:05]} e3 {[%emt 0:00:07]} 50. fxe3 {[%emt 0:00:05] Ne6 is the strong threat.} g5 {[%emt 0:00:12]} (50... Bb6 51. Ne6 $16) 51. hxg5+ {[%emt 0:00:28]} Kxg5 {[%emt 0:00:07]} 52. Kf3 {[%emt 0:00:19]} h5 {[%emt 0:00:30]} 53. Ne6+ {[%emt 0:02:40]} Kf6 {[%emt 0:00:11]} 54. Nf4 {[%emt 0:00:05]} Kg5 {[%emt 0:00:04]} 55. e4 {[%emt 0:02:50]} Bc3 {[%emt 0:00:05]} 56. Nh3+ {[%emt 0:00:54]} Kf6 {[%emt 0:00:04]} 57. g4 {[%emt 0:00:04]} hxg4+ {[%emt 0:00:05]} 58. Kxg4 {[%emt 0:00:02] Blacks defense is rewarded with a draw.   Weighted Error Value: White=0.15 (very precise) /Black=0.14 (very precise)} 1/2-1/2